[Event "Titled Tuesday Blitz January 18 2022"]
[White "Ekdyshman, Mikhail"]
[Black "Tregubov, Pavel V."]
[WhiteFideId "4149416"]
[BlackFideId "4115341"]
[WhiteElo "2156"]
[BlackElo "2341"]
[Result "1-0"]
[Round "04"]
[TimeControl "180+1"]
[Date "2022.01.18"]
[WhiteClock "0:00:39"]
[BlackClock "0:00:21"]

1. e4 {[%clk 0:02:58]}  e6 {[%clk 0:02:58]} 2. d4 {[%clk 0:02:58]}  d5 {[%clk 0:02:59]} 3. Nd2 {[%clk 0:02:59]}  c5 {[%clk 0:02:58]} 4. c3 {[%clk 0:02:59]}  Nc6 {[%clk 0:02:52]} 5. Ngf3 {[%clk 0:02:58]}  cxd4 {[%clk 0:02:45]} 6. cxd4 {[%clk 0:02:57]}  dxe4 {[%clk 0:02:45]} 7. Nxe4 {[%clk 0:02:57]}  Bb4+ {[%clk 0:02:46]} 8. Nc3 {[%clk 0:02:57]}  Nf6 {[%clk 0:02:45]} 9. Bd3 {[%clk 0:02:57]}  O-O {[%clk 0:02:42]} 10. O-O {[%clk 0:02:56]}  b6 {[%clk 0:02:41]} 11. a3 {[%clk 0:02:54]}  Be7 {[%clk 0:02:41]} 12. Re1 {[%clk 0:02:53]}  Bb7 {[%clk 0:02:41]} 13. Bc2 {[%clk 0:02:53]}  Rc8 {[%clk 0:02:33]} 14. Qd3 {[%clk 0:02:53]}  Re8 {[%clk 0:02:21]} 15. d5 {[%clk 0:02:50]}  exd5 {[%clk 0:02:16]} 16. Bg5 {[%clk 0:02:49]}  g6 {[%clk 0:02:15]} 17. Rxe7 {[%clk 0:02:48]}  Qxe7 {[%clk 0:02:05]} 18. Nxd5 {[%clk 0:02:47]}  Nxd5 {[%clk 0:02:05]} 19. Bxe7 {[%clk 0:02:47]}  Ncxe7 {[%clk 0:02:02]} 20. Ba4 {[%clk 0:02:26]}  Red8 {[%clk 0:01:59]} 21. Qe2 {[%clk 0:02:23]}  Nf5 {[%clk 0:01:56]} 22. g3 {[%clk 0:01:46]}  Nf6 {[%clk 0:01:47]} 23. Rd1 {[%clk 0:01:39]}  Rxd1+ {[%clk 0:01:35]} 24. Qxd1 {[%clk 0:01:38]}  Ne4 {[%clk 0:01:18]} 25. Bb3 {[%clk 0:01:28]}  Kg7 {[%clk 0:01:00]} 26. Ne5 {[%clk 0:01:07]}  Ng5 {[%clk 0:00:55]} 27. h4 {[%clk 0:01:01]}  Nh3+ {[%clk 0:00:53]} 28. Kf1 {[%clk 0:00:57]}  Rc7 {[%clk 0:00:47]} 29. Bd5 {[%clk 0:00:49]}  Bxd5 {[%clk 0:00:23]} 30. Qxd5 {[%clk 0:00:48]}  Rc2 {[%clk 0:00:23]} 31. Qxf7+ {[%clk 0:00:46]}  Kh6 {[%clk 0:00:21]} 32. Ng4+ {[%clk 0:00:39]} 1-0


[Site "https://www.chess.com"]

[Event "Titled Tuesday Blitz January 18 2022"]
[White "Erdogdu, Mert"]
[Black "Budisavljevic, Luka"]
[WhiteFideId "6301495"]
[BlackFideId "960047"]
[WhiteElo "2485"]
[BlackElo "2331"]
[Result "1-0"]
[Round "04"]
[TimeControl "180+1"]
[Date "2022.01.18"]
[WhiteClock "0:00:21"]
[BlackClock "0:00:02"]

1. e4 {[%clk 0:03:00]}  g6 {[%clk 0:02:55]} 2. d4 {[%clk 0:03:00]}  Bg7 {[%clk 0:02:56]} 3. Nc3 {[%clk 0:03:00]}  c6 {[%clk 0:02:56]} 4. Nf3 {[%clk 0:03:00]}  d5 {[%clk 0:02:56]} 5. h3 {[%clk 0:03:00]}  dxe4 {[%clk 0:02:56]} 6. Nxe4 {[%clk 0:03:01]}  Nf6 {[%clk 0:02:56]} 7. Nxf6+ {[%clk 0:03:01]}  exf6 {[%clk 0:02:57]} 8. Bd3 {[%clk 0:03:02]}  O-O {[%clk 0:02:57]} 9. O-O {[%clk 0:03:02]}  a5 {[%clk 0:02:54]} 10. c4 {[%clk 0:03:00]}  Na6 {[%clk 0:02:51]} 11. a3 {[%clk 0:02:51]}  Nc7 {[%clk 0:02:51]} 12. b3 {[%clk 0:02:48]}  b5 {[%clk 0:02:47]} 13. a4 {[%clk 0:02:46]}  bxc4 {[%clk 0:02:29]} 14. bxc4 {[%clk 0:02:47]}  Re8 {[%clk 0:02:27]} 15. Be3 {[%clk 0:02:39]}  Na6 {[%clk 0:02:24]} 16. Rc1 {[%clk 0:02:25]}  Nb4 {[%clk 0:02:24]} 17. Bb1 {[%clk 0:02:25]}  Ba6 {[%clk 0:02:17]} 18. Re1 {[%clk 0:02:24]}  Qd7 {[%clk 0:02:12]} 19. Qb3 {[%clk 0:02:19]}  Rab8 {[%clk 0:02:06]} 20. Bf4 {[%clk 0:02:18]}  Rbd8 {[%clk 0:02:00]} 21. Rcd1 {[%clk 0:02:05]}  Re6 {[%clk 0:01:51]} 22. Re3 {[%clk 0:02:00]}  Rxe3 {[%clk 0:01:38]} 23. Bxe3 {[%clk 0:01:57]}  Qe6 {[%clk 0:01:36]} 24. Rc1 {[%clk 0:01:31]}  f5 {[%clk 0:01:09]} 25. Bd3 {[%clk 0:01:00]}  Bf6 {[%clk 0:00:45]} 26. Bf1 {[%clk 0:00:59]}  Kg7 {[%clk 0:00:45]} 27. Qd1 {[%clk 0:00:49]}  Qe4 {[%clk 0:00:37]} 28. Qd2 {[%clk 0:00:46]}  Kg8 {[%clk 0:00:28]} 29. Bg5 {[%clk 0:00:41]}  Bxg5 {[%clk 0:00:25]} 30. Qxg5 {[%clk 0:00:41]}  Re8 {[%clk 0:00:23]} 31. Re1 {[%clk 0:00:35]}  Qxe1 {[%clk 0:00:24]} 32. Nxe1 {[%clk 0:00:35]}  Rxe1 {[%clk 0:00:24]} 33. Qd8+ {[%clk 0:00:35]}  Kg7 {[%clk 0:00:24]} 34. Qxa5 {[%clk 0:00:36]}  Bxc4 {[%clk 0:00:19]} 35. Qxb4 {[%clk 0:00:36]}  Rxf1+ {[%clk 0:00:20]} 36. Kh2 {[%clk 0:00:36]}  Bd5 {[%clk 0:00:19]} 37. Qb2 {[%clk 0:00:33]}  f4 {[%clk 0:00:07]} 38. a5 {[%clk 0:00:28]}  Re1 {[%clk 0:00:07]} 39. a6 {[%clk 0:00:23]}  Re8 {[%clk 0:00:07]} 40. a7 {[%clk 0:00:22]}  Ra8 {[%clk 0:00:03]} 41. Qb8 {[%clk 0:00:21]}  c5 {[%clk 0:00:03]} 42. dxc5 {[%clk 0:00:22]}  f3 {[%clk 0:00:02]} 43. Qe5+ {[%clk 0:00:21]} 1-0


[Site "https://www.chess.com"]

[Event "Titled Tuesday Blitz January 18 2022"]
[White "Gelman, Alexander"]
[Black "Yurovskykh, Oleksandr"]
[WhiteFideId "4118316"]
[BlackFideId "14134020"]
[WhiteElo "2375"]
[BlackElo "2292"]
[Result "1-0"]
[Round "04"]
[TimeControl "180+1"]
[Date "2022.01.18"]
[WhiteClock "0:00:05"]
[BlackClock "0:00:03"]

1. d4 {[%clk 0:03:00]}  d5 {[%clk 0:02:58]} 2. Nc3 {[%clk 0:03:01]}  Nf6 {[%clk 0:02:57]} 3. Bf4 {[%clk 0:03:01]}  c5 {[%clk 0:02:57]} 4. e3 {[%clk 0:03:02]}  cxd4 {[%clk 0:02:54]} 5. exd4 {[%clk 0:03:02]}  a6 {[%clk 0:02:53]} 6. Nf3 {[%clk 0:03:02]}  Bg4 {[%clk 0:02:50]} 7. h3 {[%clk 0:03:02]}  Bxf3 {[%clk 0:02:48]} 8. Qxf3 {[%clk 0:03:02]}  Nc6 {[%clk 0:02:48]} 9. O-O-O {[%clk 0:03:03]}  e6 {[%clk 0:02:48]} 10. g4 {[%clk 0:03:03]}  Bd6 {[%clk 0:02:46]} 11. Kb1 {[%clk 0:02:58]}  Bxf4 {[%clk 0:02:41]} 12. Qxf4 {[%clk 0:02:59]}  h6 {[%clk 0:02:41]} 13. h4 {[%clk 0:02:43]}  Qb8 {[%clk 0:02:36]} 14. Qf3 {[%clk 0:02:41]}  Qd6 {[%clk 0:02:13]} 15. g5 {[%clk 0:02:31]}  hxg5 {[%clk 0:02:14]} 16. hxg5 {[%clk 0:02:31]}  Rxh1 {[%clk 0:02:10]} 17. Qxh1 {[%clk 0:02:32]}  Nd7 {[%clk 0:02:08]} 18. Qh8+ {[%clk 0:02:21]}  Qf8 {[%clk 0:02:06]} 19. Qh2 {[%clk 0:02:22]}  O-O-O {[%clk 0:01:52]} 20. a3 {[%clk 0:02:19]}  g6 {[%clk 0:01:51]} 21. Qf4 {[%clk 0:02:17]}  Qg7 {[%clk 0:01:35]} 22. Na4 {[%clk 0:01:58]}  Qf8 {[%clk 0:00:59]} 23. c4 {[%clk 0:01:49]}  dxc4 {[%clk 0:00:54]} 24. Bg2 {[%clk 0:01:45]}  e5 {[%clk 0:00:28]} 25. dxe5 {[%clk 0:01:38]}  Ndxe5 {[%clk 0:00:24]} 26. Nb6+ {[%clk 0:01:02]}  Kc7 {[%clk 0:00:21]} 27. Rxd8 {[%clk 0:00:41]}  Qxd8 {[%clk 0:00:11]} 28. Nd5+ {[%clk 0:00:34]}  Kb8 {[%clk 0:00:10]} 29. Ka1 {[%clk 0:00:27]}  Qd6 {[%clk 0:00:09]} 30. Qe3 {[%clk 0:00:21]}  Nd7 {[%clk 0:00:04]} 31. Qe8+ {[%clk 0:00:15]}  Ka7 {[%clk 0:00:04]} 32. Qxf7 {[%clk 0:00:14]}  Nce5 {[%clk 0:00:05]} 33. Qf4 {[%clk 0:00:12]}  Qc5 {[%clk 0:00:04]} 34. Qe4 {[%clk 0:00:11]}  Qxf2 {[%clk 0:00:04]} 35. Nf6 {[%clk 0:00:10]}  Qb6 {[%clk 0:00:03]} 36. Nd5 {[%clk 0:00:08]}  Qb3 {[%clk 0:00:01]} 37. Nc3 {[%clk 0:00:06]}  Qb6 {[%clk 0:00:02]} 38. Na4 {[%clk 0:00:06]}  Qb3 {[%clk 0:00:01]} 39. Qd4+ {[%clk 0:00:06]}  Kb8 {[%clk 0:00:01]} 40. Nc3 {[%clk 0:00:06]}  Qb6 {[%clk 0:00:01]} 41. Qd5 {[%clk 0:00:05]}  Ka7 {[%clk 0:00:01]} 42. Ne4 {[%clk 0:00:05]}  Qg1+ {[%clk 0:00:02]} 43. Ka2 {[%clk 0:00:04]}  Qb6 {[%clk 0:00:03]} 44. Nd6 {[%clk 0:00:05]}  Qc5 {[%clk 0:00:03]} 45. Qxb7# {[%clk 0:00:05]} 1-0


[Site "https://www.chess.com"]

[Event "Titled Tuesday Blitz January 18 2022"]
[White "Gomez Ledo, Roberto Carlos"]
[Black "Ljukin, Sergei"]
[WhiteFideId "3507076"]
[BlackFideId "14102200"]
[WhiteElo "2379"]
[BlackElo "2312"]
[Result "0-1"]
[Round "04"]
[TimeControl "180+1"]
[Date "2022.01.18"]
[WhiteClock "0:00:02"]
[BlackClock "0:00:57"]

1. d4 {[%clk 0:03:00]}  d5 {[%clk 0:02:55]} 2. Bf4 {[%clk 0:03:01]}  Nf6 {[%clk 0:02:54]} 3. e3 {[%clk 0:03:00]}  c5 {[%clk 0:02:54]} 4. c3 {[%clk 0:02:59]}  Nc6 {[%clk 0:02:54]} 5. Nd2 {[%clk 0:02:59]}  Bf5 {[%clk 0:02:53]} 6. Ngf3 {[%clk 0:02:59]}  e6 {[%clk 0:02:52]} 7. Qb3 {[%clk 0:02:47]}  Qb6 {[%clk 0:02:52]} 8. Qxb6 {[%clk 0:02:35]}  axb6 {[%clk 0:02:51]} 9. Bc7 {[%clk 0:02:33]}  Nd7 {[%clk 0:02:47]} 10. Bb5 {[%clk 0:02:32]}  Be7 {[%clk 0:02:40]} 11. h3 {[%clk 0:02:25]}  O-O {[%clk 0:02:39]} 12. a3 {[%clk 0:02:06]}  Rfc8 {[%clk 0:02:37]} 13. Bg3 {[%clk 0:02:03]}  c4 {[%clk 0:02:29]} 14. a4 {[%clk 0:01:48]}  Nf6 {[%clk 0:02:28]} 15. O-O {[%clk 0:01:20]}  Na7 {[%clk 0:02:20]} 16. Rfc1 {[%clk 0:01:15]}  Nxb5 {[%clk 0:02:16]} 17. axb5 {[%clk 0:01:16]}  Ra5 {[%clk 0:02:15]} 18. Rxa5 {[%clk 0:00:43]}  bxa5 {[%clk 0:02:14]} 19. Ra1 {[%clk 0:00:38]}  b6 {[%clk 0:02:14]} 20. Ne5 {[%clk 0:00:36]}  Bc2 {[%clk 0:01:58]} 21. Nc6 {[%clk 0:00:35]}  Bf8 {[%clk 0:01:57]} 22. Bb8 {[%clk 0:00:31]}  Nd7 {[%clk 0:01:53]} 23. Bg3 {[%clk 0:00:27]}  Ra8 {[%clk 0:01:51]} 24. Nf3 {[%clk 0:00:24]}  f6 {[%clk 0:01:47]} 25. Nd2 {[%clk 0:00:22]}  a4 {[%clk 0:01:43]} 26. Nb1 {[%clk 0:00:21]}  Bxb1 {[%clk 0:01:39]} 27. Rxb1 {[%clk 0:00:22]}  a3 {[%clk 0:01:39]} 28. bxa3 {[%clk 0:00:21]}  Rxa3 {[%clk 0:01:39]} 29. Rc1 {[%clk 0:00:21]}  Rb3 {[%clk 0:01:39]} 30. Na7 {[%clk 0:00:20]}  Ba3 {[%clk 0:01:22]} 31. Rc2 {[%clk 0:00:19]}  Bb2 {[%clk 0:01:22]} 32. Bc7 {[%clk 0:00:19]}  Bxc3 {[%clk 0:01:22]} 33. g4 {[%clk 0:00:18]}  Ba5 {[%clk 0:01:20]} 34. Kg2 {[%clk 0:00:16]}  e5 {[%clk 0:01:18]} 35. dxe5 {[%clk 0:00:14]}  fxe5 {[%clk 0:01:18]} 36. Bd6 {[%clk 0:00:15]}  c3 {[%clk 0:01:17]} 37. f4 {[%clk 0:00:13]}  d4 {[%clk 0:01:17]} 38. fxe5 {[%clk 0:00:13]}  d3 {[%clk 0:01:17]} 39. e6 {[%clk 0:00:13]}  Nf6 {[%clk 0:01:15]} 40. Rf2 {[%clk 0:00:11]}  Rb2 {[%clk 0:01:04]} 41. g5 {[%clk 0:00:10]}  Ne8 {[%clk 0:01:02]} 42. Ba3 {[%clk 0:00:02]}  Rxf2+ {[%clk 0:01:01]} 43. Kxf2 {[%clk 0:00:03]}  c2 {[%clk 0:00:58]} 44. Nc6 {[%clk 0:00:02]}  d2 {[%clk 0:00:58]} 45. Ne7+ {[%clk 0:00:02]}  Kh8 {[%clk 0:00:57]} 0-1


[Site "https://www.chess.com"]

[Event "Titled Tuesday Blitz January 18 2022"]
[White "Hakobyan, Aram"]
[Black "Izoria, Zviad"]
[WhiteFideId "13306677"]
[BlackFideId "13601733"]
[WhiteElo "2557"]
[BlackElo "2626"]
[Result "1-0"]
[Round "04"]
[TimeControl "180+1"]
[Date "2022.01.18"]
[WhiteClock "0:01:06"]
[BlackClock "0:00:02"]

1. d4 {[%clk 0:03:00]}  Nf6 {[%clk 0:02:56]} 2. c4 {[%clk 0:03:01]}  e6 {[%clk 0:02:55]} 3. Nf3 {[%clk 0:03:02]}  Bb4+ {[%clk 0:02:52]} 4. Nc3 {[%clk 0:02:57]}  b6 {[%clk 0:02:47]} 5. Qc2 {[%clk 0:02:57]}  Bb7 {[%clk 0:02:47]} 6. a3 {[%clk 0:02:58]}  Bxc3+ {[%clk 0:02:47]} 7. Qxc3 {[%clk 0:02:58]}  d6 {[%clk 0:02:41]} 8. Bg5 {[%clk 0:02:58]}  h6 {[%clk 0:02:37]} 9. Bh4 {[%clk 0:02:56]}  Nbd7 {[%clk 0:02:26]} 10. Nd2 {[%clk 0:02:53]}  O-O {[%clk 0:02:19]} 11. f3 {[%clk 0:02:49]}  c5 {[%clk 0:02:16]} 12. dxc5 {[%clk 0:02:43]}  bxc5 {[%clk 0:02:12]} 13. e3 {[%clk 0:02:42]}  a5 {[%clk 0:02:11]} 14. b3 {[%clk 0:02:32]}  Qb6 {[%clk 0:02:05]} 15. Be2 {[%clk 0:02:20]}  d5 {[%clk 0:01:54]} 16. Bf2 {[%clk 0:02:20]}  Ba6 {[%clk 0:01:22]} 17. O-O {[%clk 0:02:11]}  e5 {[%clk 0:01:21]} 18. Bd3 {[%clk 0:01:51]}  d4 {[%clk 0:01:19]} 19. Qc2 {[%clk 0:01:51]}  Bb7 {[%clk 0:01:12]} 20. Rab1 {[%clk 0:01:43]}  Rfe8 {[%clk 0:01:07]} 21. Rfe1 {[%clk 0:01:42]}  Nf8 {[%clk 0:01:02]} 22. exd4 {[%clk 0:01:21]}  exd4 {[%clk 0:01:00]} 23. b4 {[%clk 0:01:12]}  Rxe1+ {[%clk 0:00:56]} 24. Rxe1 {[%clk 0:01:05]}  axb4 {[%clk 0:00:53]} 25. axb4 {[%clk 0:01:06]}  Ne6 {[%clk 0:00:25]} 26. bxc5 {[%clk 0:01:06]}  Nxc5 {[%clk 0:00:20]} 27. Bf1 {[%clk 0:01:07]}  Rd8 {[%clk 0:00:19]} 28. Rb1 {[%clk 0:01:07]}  Qd6 {[%clk 0:00:13]} 29. Qb2 {[%clk 0:01:08]}  Bc8 {[%clk 0:00:08]} 30. Qa3 {[%clk 0:01:06]}  Bf5 {[%clk 0:00:08]} 31. Rb5 {[%clk 0:01:06]}  Nfd7 {[%clk 0:00:07]} 32. Nb3 {[%clk 0:01:06]}  Rc8 {[%clk 0:00:02]} 33. Bxd4 {[%clk 0:01:06]} 1-0


[Site "https://www.chess.com"]

[Event "Titled Tuesday Blitz January 18 2022"]
[White "Hirneise, Jens"]
[Black "Tristan, Leonardo"]
[WhiteFideId "24614734"]
[BlackFideId "113816"]
[WhiteElo "2323"]
[BlackElo "2404"]
[Result "0-1"]
[Round "04"]
[TimeControl "180+1"]
[Date "2022.01.18"]
[WhiteClock "0:00:04"]
[BlackClock "0:00:16"]

1. e4 {[%clk 0:03:00]}  d5 {[%clk 0:03:00]} 2. Nc3 {[%clk 0:02:51]}  dxe4 {[%clk 0:02:56]} 3. Nxe4 {[%clk 0:02:52]}  Bf5 {[%clk 0:02:56]} 4. Qf3 {[%clk 0:02:46]}  Qd5 {[%clk 0:02:54]} 5. d3 {[%clk 0:02:39]}  Nc6 {[%clk 0:02:52]} 6. Nc3 {[%clk 0:02:17]}  Qa5 {[%clk 0:02:17]} 7. Bd2 {[%clk 0:02:03]}  Nf6 {[%clk 0:02:14]} 8. O-O-O {[%clk 0:01:30]}  Bg4 {[%clk 0:02:09]} 9. Qg3 {[%clk 0:01:06]}  Bxd1 {[%clk 0:02:09]} 10. Kxd1 {[%clk 0:01:07]}  O-O-O {[%clk 0:02:01]} 11. Nf3 {[%clk 0:01:07]}  h6 {[%clk 0:01:56]} 12. Kc1 {[%clk 0:01:04]}  e6 {[%clk 0:01:53]} 13. Be2 {[%clk 0:01:01]}  Rg8 {[%clk 0:01:41]} 14. Kb1 {[%clk 0:00:57]}  Bd6 {[%clk 0:01:38]} 15. Qh4 {[%clk 0:00:58]}  Qf5 {[%clk 0:01:27]} 16. h3 {[%clk 0:00:52]}  g5 {[%clk 0:01:24]} 17. Qa4 {[%clk 0:00:52]}  Qa5 {[%clk 0:01:22]} 18. Qxa5 {[%clk 0:00:39]}  Nxa5 {[%clk 0:01:22]} 19. Nb5 {[%clk 0:00:40]}  Nc6 {[%clk 0:01:22]} 20. Nxd6+ {[%clk 0:00:40]}  cxd6 {[%clk 0:01:21]} 21. Nh2 {[%clk 0:00:37]}  Kd7 {[%clk 0:01:17]} 22. c3 {[%clk 0:00:37]}  Ke7 {[%clk 0:01:16]} 23. Ng4 {[%clk 0:00:37]}  Rh8 {[%clk 0:01:05]} 24. d4 {[%clk 0:00:34]}  Nd5 {[%clk 0:01:03]} 25. Nxh6 {[%clk 0:00:28]}  Rxh6 {[%clk 0:01:00]} 26. Bxg5+ {[%clk 0:00:29]}  Rf6 {[%clk 0:01:01]} 27. Re1 {[%clk 0:00:24]}  Rg8 {[%clk 0:00:59]} 28. Bxf6+ {[%clk 0:00:24]}  Nxf6 {[%clk 0:00:57]} 29. g3 {[%clk 0:00:25]}  Ne4 {[%clk 0:00:55]} 30. d5 {[%clk 0:00:19]}  Ne5 {[%clk 0:00:52]} 31. f4 {[%clk 0:00:18]}  Nd7 {[%clk 0:00:51]} 32. dxe6 {[%clk 0:00:17]}  fxe6 {[%clk 0:00:51]} 33. g4 {[%clk 0:00:18]}  d5 {[%clk 0:00:42]} 34. Kc2 {[%clk 0:00:16]}  Rf8 {[%clk 0:00:40]} 35. f5 {[%clk 0:00:10]}  exf5 {[%clk 0:00:40]} 36. gxf5 {[%clk 0:00:10]}  Rxf5 {[%clk 0:00:40]} 37. Bg4 {[%clk 0:00:10]}  Rf2+ {[%clk 0:00:40]} 38. Kc1 {[%clk 0:00:11]}  Ne5 {[%clk 0:00:37]} 39. Be2 {[%clk 0:00:10]}  Rh2 {[%clk 0:00:34]} 40. c4 {[%clk 0:00:10]}  Kd6 {[%clk 0:00:19]} 41. Bf1 {[%clk 0:00:10]}  Nc5 {[%clk 0:00:17]} 42. Kb1 {[%clk 0:00:09]}  d4 {[%clk 0:00:17]} 43. Rd1 {[%clk 0:00:06]}  d3 {[%clk 0:00:17]} 44. b4 {[%clk 0:00:06]}  Ne4 {[%clk 0:00:17]} 45. Ka1 {[%clk 0:00:05]}  Nc3 {[%clk 0:00:17]} 46. c5+ {[%clk 0:00:04]}  Kc7 {[%clk 0:00:16]} 0-1


[Site "https://www.chess.com"]

[Event "Titled Tuesday Blitz January 18 2022"]
[White "Ivanisevic, Ivan"]
[Black "Aydin, Gulenay"]
[WhiteFideId "912417"]
[BlackFideId "34557431"]
[WhiteElo "2495"]
[BlackElo "1429"]
[Result "1-0"]
[Round "04"]
[TimeControl "180+1"]
[Date "2022.01.18"]
[WhiteClock "0:00:45"]
[BlackClock "0:00:37"]

1. e4 {[%clk 0:01:44]}  c5 {[%clk 0:02:57]} 2. Nc3 {[%clk 0:01:45]}  d6 {[%clk 0:02:58]} 3. g3 {[%clk 0:01:45]}  g6 {[%clk 0:02:58]} 4. Bg2 {[%clk 0:01:45]}  Bg7 {[%clk 0:02:58]} 5. d3 {[%clk 0:01:46]}  Nc6 {[%clk 0:02:59]} 6. Nh3 {[%clk 0:01:47]}  Nf6 {[%clk 0:02:55]} 7. f4 {[%clk 0:01:46]}  Bg4 {[%clk 0:02:51]} 8. Qd2 {[%clk 0:01:46]}  Bxh3 {[%clk 0:02:47]} 9. Bxh3 {[%clk 0:01:46]}  O-O {[%clk 0:02:45]} 10. O-O {[%clk 0:01:46]}  Rb8 {[%clk 0:02:44]} 11. Qg2 {[%clk 0:01:41]}  Qc7 {[%clk 0:02:35]} 12. a4 {[%clk 0:01:40]}  a6 {[%clk 0:02:35]} 13. g4 {[%clk 0:01:39]}  b5 {[%clk 0:02:31]} 14. axb5 {[%clk 0:01:39]}  axb5 {[%clk 0:02:32]} 15. g5 {[%clk 0:01:39]}  Nd7 {[%clk 0:02:29]} 16. Nd5 {[%clk 0:01:38]}  Qd8 {[%clk 0:02:29]} 17. f5 {[%clk 0:01:37]}  Be5 {[%clk 0:01:43]} 18. Bg4 {[%clk 0:01:12]}  Nb6 {[%clk 0:01:40]} 19. Nf4 {[%clk 0:01:03]}  c4 {[%clk 0:01:22]} 20. Be3 {[%clk 0:00:56]}  cxd3 {[%clk 0:01:18]} 21. cxd3 {[%clk 0:00:57]}  Na4 {[%clk 0:01:15]} 22. fxg6 {[%clk 0:00:54]}  hxg6 {[%clk 0:01:14]} 23. Nxg6 {[%clk 0:00:51]}  fxg6 {[%clk 0:01:09]} 24. Be6+ {[%clk 0:00:50]}  Kg7 {[%clk 0:00:58]} 25. Qh3 {[%clk 0:00:50]}  Rh8 {[%clk 0:00:36]} 26. Rf7+ {[%clk 0:00:49]}  Kg8 {[%clk 0:00:37]} 27. Rh7+ {[%clk 0:00:48]}  Kf8 {[%clk 0:00:37]} 28. Rf1+ {[%clk 0:00:46]}  Ke8 {[%clk 0:00:36]} 29. Rxh8+ {[%clk 0:00:46]}  Bxh8 {[%clk 0:00:37]} 30. Qxh8# {[%clk 0:00:45]} 1-0


[Site "https://www.chess.com"]

[Event "Titled Tuesday Blitz January 18 2022"]
[White "Jobava, Baadur"]
[Black "Djordjevic, Vuk"]
[WhiteFideId "13601520"]
[BlackFideId "902098"]
[WhiteElo "2617"]
[BlackElo "2463"]
[Result "1-0"]
[Round "04"]
[TimeControl "180+1"]
[Date "2022.01.18"]
[WhiteClock "0:01:25"]
[BlackClock "0:00:01"]

1. e4 {[%clk 0:03:00]}  e6 {[%clk 0:03:00]} 2. d4 {[%clk 0:02:59]}  d5 {[%clk 0:03:00]} 3. exd5 {[%clk 0:03:00]}  exd5 {[%clk 0:03:00]} 4. Nf3 {[%clk 0:03:01]}  Bd6 {[%clk 0:02:59]} 5. Bd3 {[%clk 0:03:01]}  Nf6 {[%clk 0:02:59]} 6. O-O {[%clk 0:03:02]}  O-O {[%clk 0:03:00]} 7. h3 {[%clk 0:03:02]}  h6 {[%clk 0:02:59]} 8. Re1 {[%clk 0:03:01]}  c5 {[%clk 0:02:55]} 9. dxc5 {[%clk 0:02:59]}  Bxc5 {[%clk 0:02:56]} 10. Nc3 {[%clk 0:02:56]}  Nc6 {[%clk 0:02:53]} 11. Bf4 {[%clk 0:02:52]}  Be6 {[%clk 0:02:34]} 12. Qd2 {[%clk 0:02:51]}  Re8 {[%clk 0:02:26]} 13. Rad1 {[%clk 0:02:46]}  a6 {[%clk 0:02:14]} 14. a3 {[%clk 0:02:46]}  Rc8 {[%clk 0:02:12]} 15. Qc1 {[%clk 0:02:45]}  Bf8 {[%clk 0:02:03]} 16. Ne2 {[%clk 0:02:39]}  g5 {[%clk 0:01:39]} 17. Be3 {[%clk 0:02:24]}  g4 {[%clk 0:01:33]} 18. Bxh6 {[%clk 0:02:23]}  Nh5 {[%clk 0:00:50]} 19. Bxf8 {[%clk 0:02:17]}  Kxf8 {[%clk 0:00:43]} 20. Qh6+ {[%clk 0:02:16]}  Ke7 {[%clk 0:00:32]} 21. hxg4 {[%clk 0:02:14]}  Rh8 {[%clk 0:00:26]} 22. Qg5+ {[%clk 0:02:15]}  f6 {[%clk 0:00:26]} 23. Qe3 {[%clk 0:02:14]}  Ng7 {[%clk 0:00:25]} 24. Nf4 {[%clk 0:02:12]}  Qd6 {[%clk 0:00:24]} 25. Ng6+ {[%clk 0:02:12]}  Kf7 {[%clk 0:00:24]} 26. Nxh8+ {[%clk 0:02:13]}  Rxh8 {[%clk 0:00:25]} 27. g5 {[%clk 0:02:01]}  d4 {[%clk 0:00:13]} 28. Qe4 {[%clk 0:01:36]}  Bf5 {[%clk 0:00:11]} 29. Bc4+ {[%clk 0:01:32]}  Kf8 {[%clk 0:00:11]} 30. Qd5 {[%clk 0:01:32]}  Qxd5 {[%clk 0:00:02]} 31. Bxd5 {[%clk 0:01:32]}  fxg5 {[%clk 0:00:02]} 32. Bxc6 {[%clk 0:01:30]}  bxc6 {[%clk 0:00:02]} 33. Nxd4 {[%clk 0:01:31]}  Bd7 {[%clk 0:00:02]} 34. Nf3 {[%clk 0:01:28]}  Be8 {[%clk 0:00:01]} 35. Nxg5 {[%clk 0:01:28]}  Rh6 {[%clk 0:00:02]} 36. Rd8 {[%clk 0:01:26]}  Rg6 {[%clk 0:00:02]} 37. f4 {[%clk 0:01:24]}  Rf6 {[%clk 0:00:01]} 38. Nh7+ {[%clk 0:01:25]} 1-0


[Site "https://www.chess.com"]